Cogmind - Beta 15 @@@ ROGUE MODE // 2025.06.13 @ 04:05:53 Player: Sen Result: Destroyed by G-34 Mercenary with Small Laser Performance ------------- Evolutions (1) 500 Regions Visited (2) 400 Robots Destroyed (17) 85 Value Destroyed (425) 425 Prototype IDs (2) 40 Alien Tech Used (0) 0 Bonus (200) 200 TOTAL SCORE: 1650 Bonus ------- Pacifist 200 Cogmind --------- Core Integrity 0/400 Matter 280/300 Energy 28/265 System Corruption 0% Temperature Warm (156) Movement Treading (160) Location -9/Materials Parts ------- > --- POWER (1) -------- Improved Ion Engine > --- PROPULSION (4) --- Light Treads Light Treads > --- UTILITY (2) ------ Small Storage Unit Hacking Suite > --- WEAPON (2) ------- Beam Rifle > --- INVENTORY (8) ---- Machine Analyzer ECM Suite Improved Weapon Shielding Medium Armor Plating Medium Armor Plating Hacking Suite Peak State ------------ > --- POWER ------------ Nuclear Core > --- PROPULSION ------- Light Treads Light Treads Light Treads Light Treads > --- UTILITY ---------- Small Storage Unit Hacking Suite > --- WEAPON ----------- Beam Rifle Beam Rifle > --- INVENTORY -------- Machine Analyzer Improved Weapon Shielding Medium Armor Plating Medium Armor Plating Hacking Suite [Rating: 16] Favorites ----------- Power Nuclear Core Engine Light Ion Engine Power Core Nuclear Core Propulsion Aluminum Leg Treads Light Treads Leg Aluminum Leg Hover Unit Hover Unit Flight Unit Flight Unit Utility Small Storage Unit Storage Small Storage Unit Hackware Hacking Suite Protection Medium Armor Plating Weapon Light Assault Rifle Energy Gun Beam Rifle Ballistic Gun Light Assault Rifle Build | -11 -10 -9 ------- Run | Yrd Mat Mat Slots Evolved 2 | . . 2 Power . | . . . Propulsion 2 | . . 2 Utility . | . . . Weapon . | . . . Parts Attached 22 | 7 1 14 Power 4 | 1 . 3 Engine 2 | 1 . 1 Core 2 | . . 2 Reactor . | . . . Propulsion 10 | 2 . 8 Treads 5 | . . 5 Leg 3 | 2 . 1 Wheel . | . . . Hover 1 | . . 1 Flight 1 | . . 1 Utility 3 | 1 1 1 Device . | . . . Storage 1 | 1 . . Processor . | . . . Hackware 1 | . . 1 Protection 1 | . 1 . Artifact . | . . . Weapon 5 | 3 . 2 Energy Gun 3 | 1 . 2 Energy Cannon . | . . . Ballistic Gun 2 | 2 . . Ballistic Cannon . | . . . Launcher . | . . . Special Weapon . | . . . Impact Weapon . | . . . Slashing Weapon . | . . . Piercing Weapon . | . . . Special Melee Weapon . | . . . Unidentified Prototypes . | . . . Parts Lost 11 | . . 11 Power 1 | . . 1 Propulsion 6 | . . 6 Utility . | . . . Weapon 4 | . . 4 Highest Loss Streak 6 | . . 6 To Critical Strikes . | . . . Average Backups 6 | . 4 7 Power . | . 1 . Propulsion . | . . . Utility 4 | . 2 5 Weapon . | . 1 . Tool/Special . | . . . Unused Backups 10 | . . 10 Power 1 | . . 1 Propulsion . | . . . Utility 9 | . . 9 Weapon . | . . . Tool/Special . | . . . Average Slot Usage (%) 83 | . 95 79 Engine 3 | . 14 . Core 6 | . . 9 Treads 10 | . . 13 Leg 17 | . 28 14 Storage 11 | . 14 11 Hackware 5 | . . 6 Protection 5 | . 9 4 Energy Gun 5 | . . 6 Ballistic Gun 16 | . 28 13 Peak Build Rating 16 | 6 9 16 Average Rating 10 | 4 8 11 On Entrance 5 | . 6 9 Naked Turns . | . . . Heaviest Build 22 | 11 18 22 Greatest Support 80 | 20 20 80 Greatest Overweight (x) 4 | 1 . 4 Average Overweight (x) . | . . . Largest Inventory Capacity 8 | 8 8 8 Average Capacity 7 | 6 8 8 Most Carried 8 | 2 6 8 Average Carried 6 | 1 4 7 Final Capacity 8 | 8 8 8 Final Carried 6 | 2 6 6 Class Distribution -------------------- 77% | Mutant 22% | Scavenger-Mutant Dominant Class ---------------- Mutant | -10/Materials Mutant | -9/Materials Resources | -11 -10 -9 ----------- Run | Yrd Mat Mat Matter Collected 517 | 265 15 237 Remotely . | . . . Salvage Created 632 | . . 632 Parts 45 | . . 45 Haulers Intercepted 1 | . . 1 Recyclers Shooed . | . . . Parts Field Recycled . | . . . Retrieved Matter . | . . . Parts Self-Destructed . | . . . Prevented . | . . . Kills | -11 -10 -9 ------- Run | Yrd Mat Mat Combat Hostiles Destroyed 13 | . . 13 Guns 13 | . . 13 Classes Destroyed 8 | . . 8 Worker 2 | . . 2 Hauler 1 | . . 1 Watcher 1 | . . 1 Swarmer 4 | . . 4 Grunt 3 | . . 3 Brawler 1 | . . 1 Duelist 1 | . . 1 Sentry 4 | . . 4 Best Kill Streak 6 | . . 6 Combat Bots Only 2 | . . 2 Max Kills in Single Turn 1 | . . 1 Gunslinging . | . . . Exploded . | . . . Melee . | . . . Uniques/NPCs Destroyed . | . . . Combat | -11 -10 -9 -------- Run | Yrd Mat Mat Hostile Shots Fired 188 | . . 188 Missed 59 | . . 59 Hits 129 | . . 129 Melee 6 | . . 6 Projectile 123 | . . 123 Critical Strikes 4 | . . 4 Damage Taken 1743 | . . 1743 Core 402 | . . 402 Absorbed by Shields . | . . . Core Remaining (%) 100 | 100 100 . Volleys Fired 89 | . . 89 Largest 2 | . . 2 Hottest 112 | . . 112 Shots Fired 139 | . . 139 Gun 139 | . . 139 Cannon . | . . . Launcher . | . . . Special . | . . . Kinetic 73 | . . 73 Thermal 66 | . . 66 Explosive . | . . . Electromagnetic . | . . . Robot Hit Streak 19 | . . 19 Robot Miss Streak 6 | . . 6 Penetration Max . | . . . Secondary Targets 1 | . . 1 Max Gunslinging Chain 1 | . . 1 Shots Hit Robots 88 | . . 88 Core Hits 35 | . . 35 Critical Kills . | . . . Critical Parts Destroyed . | . . . Critical Strikes 3 | . . 3 Burn 3 | . . 3 Melee Attacks . | . . . Impact . | . . . Slashing . | . . . Piercing . | . . . Sneak Attacks . | . . . Combat Hostiles . | . . . Follow-up Attacks . | . . . Damage Inflicted 1063 | . . 1063 Guns 1063 | . . 1063 Cannons . | . . . Explosions . | . . . Melee . | . . . Ramming . | . . . Kinetic 448 | . . 448 Thermal 615 | . . 615 Explosive . | . . . Electromagnetic . | . . . Impact . | . . . Slashing . | . . . Piercing . | . . . Highest Corruption . | . . . Average Corruption . | . . . Corruption Purged . | . . . Corruption Blocked . | . . . Overload Shots . | . . . Overflow Damage . | . . . Projectiles . | . . . Explosions . | . . . Melee . | . . . Knockbacks . | . . . Impact . | . . . Kinetic . | . . . Secondary . | . . . Self-Inflicted Damage . | . . . Shots . | . . . Rammed . | . . . Targets Rammed . | . . . Kicked . | . . . Crushed . | . . . Highest Temperature 398 | . . 398 Average Temperature 82 | . . 82 Received Heat Transfer 414 | . . 414 Siege Activations . | . . . Martial Activations . | . . . Shielding Activations . | . . . Robots Disrupted . | . . . Combat Hostiles . | . . . Robots Corrupted . | . . . Combat Hostiles . | . . . Parts Fried . | . . . Impact Corruptions . | . . . Robots Melted . | . . . Combat Hostiles . | . . . Parts Melted 2 | . . 2 Heat Transferred 1813 | . . 1813 Parts Sabotaged . | . . . Parts Stolen . | . . . Parts Stripped . | . . . Power Chain Reactions . | . . . Alert | -11 -10 -9 ------- Run | Yrd Mat Mat Maximum Alert Level . | . . . Low Security (%) 100 | 100 100 100 Level 1 . | . . . Level 2 . | . . . Level 3 . | . . . Level 4 . | . . . Level 5 . | . . . High Security . | . . . Max Security . | . . . Peak Influence 147 | . . 147 Initial . | . . . Average 30 | . . 42 Influence Increases 405 | . . 405 Destroy 0b10 Robot/C 260 | . . 260 Destroy 0b10 Robot/NC 20 | . . 20 Destroy Leader 74 | . . 74 Successful Hack 21 | . . 21 Lose Combat Pursuer 30 | . . 30 Influence Decreases 284 | . . 284 Time Decay 184 | . . 184 Lost Part 100 | . . 100 Squads Dispatched . | . . . Investigation . | . . . Extermination . | . . . Reinforcement . | . . . Assault . | . . . Garrison . | . . . Intercept . | . . . Searches Triggered . | . . . Construction Impeded . | . . . Haulers Reinforced . | . . . Active Scanning Responses . | . . . Cargo Convoy Interrupts . | . . . Stealth | -11 -10 -9 --------- Run | Yrd Mat Mat Distress Signals 2 | . . 2 Communications Jammed . | . . . Distress Signals . | . . . Times Spotted 20 | . 1 19 Peak Tracking Total 6 | . 1 6 Tactical Retreats 2 | . . 2 Traps | -11 -10 -9 ------- Run | Yrd Mat Mat Traps Triggered . | . . . Indirectly . | . . . Trap Hack Attempts . | . . . Triggered . | . . . Disarmed . | . . . Reprogrammed . | . . . Reused . | . . . Traps Extracted . | . . . Installed . | . . . Triggered . | . . . Machines | -11 -10 -9 ---------- Run | Yrd Mat Mat Machines Disabled . | . . . Max in Single Turn . | . . . Machines Repaired . | . . . Machines Dismantled . | . . . Machines Sabotaged . | . . . Overloaded Fab Kills . | . . . Hacking | -11 -10 -9 --------- Run | Yrd Mat Mat Machines Accessed 3 | . 1 2 Terminals 2 | . 1 1 Fabricators . | . . . Repair Stations . | . . . Recycling Units . | . . . Scanalyzers 1 | . . 1 Garrison Access . | . . . Total Hacks 7 | . 1 6 Successful 5 | . 1 4 Failed 2 | . . 2 Catastrophic . | . . . Database Lockouts . | . . . Manual 2 | . . 2 Terminals 4 | . 1 3 Fabricators . | . . . Repair Stations . | . . . Recycling Units . | . . . Scanalyzers 3 | . . 3 Garrison Access . | . . . Terminal Hacks 3 | . 1 2 Prototype ID Bank 1 | . 1 . Dispatch Records 1 | . . 1 Zone Layout 1 | . . 1 Fabricator Hacks . | . . . Repair Station Hacks . | . . . Recycling Unit Hacks . | . . . Scanalyzer 2 | . . 2 Insert Component 1 | . . 1 Analyze 1 | . . 1 Garrison Access Hacks . | . . . Unauthorized Hacks . | . . . Terminals . | . . . Fabricators . | . . . Repair Stations . | . . . Recycling Units . | . . . Scanalyzers . | . . . Garrison Access . | . . . Data Cores Recovered . | . . . Used . | . . . Hacking Detections 2 | . 1 1 Full Trace Events 1 | . . 1 Feedback Events . | . . . Feedback Blocked . | . . . Robot Schematics Acquired . | . . . Robots Built . | . . . Authchips . | . . . Time . | . . . Total Robot Build Rating . | . . . Part Schematics Acquired 1 | . . 1 Parts Built . | . . . Authchips . | . . . Time . | . . . Total Part Build Rating . | . . . Parts Repaired . | . . . Time . | . . . Parts Recycled . | . . . Recycled Matter . | . . . Retrieved Matter . | . . . Retrieved Components . | . . . Parts Scanalyzed 1 | . . 1 Part Schematics Acquired 1 | . . 1 Parts Damaged . | . . . Bothacking | -11 -10 -9 ------------ Run | Yrd Mat Mat Used RIF Installer . | . . . Robots Hacked . | . . . Non-combat . | . . . Combat . | . . . Robot Hacks Applied . | . . . Relay Couplers Released . | . . . Fabnet Peak Effective % . | . . . Robots Rewired . | . . . Allies Hacked . | . . . Hacks Repelled . | . . . Allies | -11 -10 -9 -------- Run | Yrd Mat Mat Total Allies . | . . . Largest Group . | . . . Highest-Rated Group . | . . . Highest-Rated Ally . | . . . Total Orders . | . . . Ally Attacks . | . . . Total Damage . | . . . Kills . | . . . Allies Corrupted . | . . . Allies Melted . | . . . Intel | -11 -10 -9 ------- Run | Yrd Mat Mat Active Infowar (turns) . | . . . Robot Analysis Total . | . . . Derelict Logs Recovered . | . . . Drone Launches . | . . . Drone Recoveries . | . . . Exploration | -11 -10 -9 ------------- Run | Yrd Mat Mat Turns Passed 757 | 65 144 548 Spaces Moved 317 | 47 116 154 Core 22 | 8 . 14 Treads 45 | . . 45 Legs 250 | 39 116 95 Wheels . | . . . Hover . | . . . Flight . | . . . Fastest Speed 50 | 50 120 120 Average Speed 145 | 112 120 174 Slowest Speed 250 | 190 120 250 Overloaded Moves . | . . . Propulsion Burnouts . | . . . Robots Hopped . | . . . Potential Cave-ins . | . . . Cave-ins Triggered . | . . . Exploration Rate (%) 16 | 3 27 18 Regions Visited 2 Branch Regions . Pre-discovered Areas . | . . . Known Exits Taken . | . . . Unknown Exits Taken 2 | 1 1 . Scrap Searched . | . . . Spaces Dug . | . . . Terrain Destroyed . | . . . Melee . | . . . Projectile . | . . . AOE . | . . . Terrain Rammed . | . . . Walls Destroyed . | . . . Machines Disabled . | . . . Actions | -11 -10 -9 --------- Run | Yrd Mat Mat Total 476 | 55 120 301 Wait 25 | . . 25 Move 315 | 46 115 154 Hop . | . . . Pick Up 15 | 2 4 9 Fast Attach 14 | 6 1 7 Attach 6 | . . 6 Detach . | . . . Swap 5 | 1 . 4 Drop 7 | . . 7 Fire 89 | . . 89 Melee . | . . . Ram . | . . . Kick . | . . . Crush . | . . . Escape Stasis . | . . . Rewire . | . . . Trap . | . . . Miscellaneous . | . . . Route ------- -11/Scrapyard -10/Materials -9/Materials History --------- Turn | Location | Event 5 | -11/Scrapyard | Discovered new exit (range 15) 66 | -11/Scrapyard | Entered Materials 181 | -10/Materials | Discovered new exit (range 16) 210 | -10/Materials | Entered another Materials area 210 | -9/Materials | Evolved 2 slots: Propulsion x2 315 | -9/Materials | Build established: Mutant 528 | -9/Materials | Core integrity fell below 50% 613 | -9/Materials | Lost 6 parts (1p2n3w) 702 | -9/Materials | Core integrity fell below 20% 758 | -9/Materials | Destroyed by G-34 Mercenary with Small Laser Last Messages --------------- 00716_ Imp. Ion Engine melted. 00716_ L-31 Rogue destroyed. 00725_ G-34 Mercenary suffers critical hit (Burn). 00725_ K-01 Serf collects debris. 00729_ G-34 Mercenary heat damages Aluminum Leg. 00729_ G-34 Mercenary overheating. 00730_ K-01 Serf collects debris. 00730_ Beam Rifle destroyed. 00735_ K-01 Serf collects debris. 00738_ Lgt. Treads destroyed. 00740_ G-34 Mercenary overheating. 00741_ K-01 Serf collects debris. 00741_ G-34 Mercenary overheating. 00742_ Sml. Laser melted. 00742_ G-34 Mercenary destroyed. 00746_ K-01 Serf collects debris. 00748_ Lgt. Treads destroyed. 00750_ K-01 Serf collects debris. [Achievement: Back For More] Map ----- +----------------------------------------------------+ | ?????????????????????????????????????????????????? | | ?????????????????????????????????????????????????? | | ?????????????????????????????????????????????????? | | ?????????????????????????????????????????????????? | | ???????????#######???????????????????????????????? | | ???????????# ##??????????????????????????????? | | ???????????# ???????????????????????????????? | | ???????????# ???????????????????????????????? | | ???????????? ????????????????????????????????? | | ???????????? ????????????????????????????????? | | ????????????# #????????????????????????????????? | | ????????????# #????????????????????????????????? | | ????????????# #????????????????????????????????? | | ????????????# #????????????????????????????????? | | #+??????????# #????????????????????????????????? | | ?????????# #????????????????????????????????? | | ######### ##???????????????????????????????? | | #####+#############?????????????? | | != !%*%//* ???????????? | | ! ==%= =%[// ???????????? | | % % *%!=//!! ???????????? | | % ############?????????????? | | ############ k# | #???????????????? | | ## # *#/ #???????????????? | | """ # # %g= k #???????????????? | | """ ## # #@* "" #???????????????? | | """ # # #!!= """#???????????????? | | ## # #! ! S"#???????????????? | | """ ## # #!= """#???????????????? | | """ ## # # ! """#???????????????? | | """ ## # # #???????????????? | | #### ###%######???????????????? | | ####?####?## # ###????????????????????? | | ???# #????## # ##?????????????????????? | | ####?##???##" # #?????????????????????? | | #????#T ???????????????????? | | """ #????#" # ??????????????????? | | """ #????# %= # ??????????????????? | | """ #????# * # ? ???????????????????? | | #????### #### ## ?????????????????????? | | """ #????###+############ ?????????????????????? | | """ #????# *%[ ####?????????????????????? | | """ #????# """! """ + ?????????????????????? | | #????# "R """ ####?????????????????????? | | """ #?#### """ """ #????????????????????????? | | """ #?# # #????????????????????????? | | """ #?# ########/#########?????????????????????? | | ######????# #??????????????? | | ####### #????# *%##+##+##?????????????????????? | | ??????# #????# # #?????????????????????? | +----------------------------------------------------+ Best States ------------- Heat Dissipation 28 Energy Generation 14 Energy Capacity 240 Matter Stores 300 Matter Capacity 300 Sight Range 16 Terrain Scan Density 10 Armor Coverage 225 Evasion (%) 55 Recoil Reduction 4 Offensive Hacking 10 Item Schematics ----------------- Hacking Suite | -9/Materials | Scanalyzed Robot Schematics ------------------ None Fabricated ------------ Nothing Repaired ---------- Nothing Alien Tech Used ----------------- None Achievements -------------- Back For More Challenges ------------ None Game ------ Seed MultinovaActiveLaser Manual? 0 Play Time 00:12:52 Cumulative 52.5 hours Start 2025.06.13 @ 03:54:12 End 2025.06.13 @ 04:05:53 Sessions 1 Manual Loads 0 Difficulty Rogue Special Mode None Game No. 50 Rogue 50 Adventurer 0 Explorer 0 Win Type - Total 0 Types 0/0/0/0/0/0/0/0/0/0 Lore% 27 Gallery% 32 Achievement% 30 Wizard Run 0 Options --------- Layout 1 ASCII 1 Keyboard 0 Movement Numpad Keybinds 0 Fullscreen 1 Font 24/Smallcaps Map View 50x35 Zoom Use 0% Tactical HUD 1 Map Filters NONE Filters NONE Steam 1 RUN: e525321e-d800-4292-9622-bd554232f980